Workbook

Sheet A
D2: DEPARTMENT OF REVENUE-CHARITABLE GAMING DIVISION
D3: UNAUTHORIZED DISTRIBUTION OF THIS LISTING IS PROHIBITED
D5: ARROW INTERNATIONAL/CAPITAL GAMES
A7: FORM | C7: COST/ | F7: UNIT | G7: GROSS | H7: PAYOUT | I7: TOP | J7: DEF. | K7: PICKLE | L7: OPER. | M7: OPER. | P7: APPROVAL
A8: NO. | B8: MFR. | C8: PER | D8: DESCRIPTION | E8: TYPE | F8: COUNT | G8: PROCEEDS | H8: PERCENT | I8: PRIZE | J8: PROFIT | K8: TAX | L8: COMM. | M8: REMIT | N8: CHECK | O8: CHECK2 | P8: DATE
A9: 6949D | B9: AI | C9: 0.25 | D9: ACE RACE | E9: 5 | F9: 4000 | G9: 1000 | H9: 0.65 | I9: 150 | J9: 350 | K9: =J9*0.1 -> 35 | L9: =J9*0.3 -> 105 | M9: =J9-L9 -> 245 | N9: =(G9-J9)/G9 -> 0.65 | O9: =H9-N9 -> 0 | P9: 2017-12-27
A10: 6952D | B10: AI | C10: 0.5 | D10: ACE RACE | E10: 5 | F10: 4000 | G10: 2000 | H10: 0.7 | I10: 250 | J10: 600 | K10: =J10*0.1 -> 60 | L10: =J10*0.3 -> 180 | M10: =J10-L10 -> 420 | N10: =(G10-J10)/G10 -> 0.7 | O10: =H10-N10 -> 0 | P10: 2017-12-27
A11: 6958D | B11: AI | C11: 0.5 | D11: ACE RACE | E11: 5 | F11: 3080 | G11: 1540 | H11: 0.75 | I11: 100 | J11: 386 | K11: =J11*0.1 -> 38.6 | L11: =J11*0.3 -> 115.8 | M11: =J11-L11 -> 270.2 | N11: =(G11-J11)/G11 -> 0.7493506494 | O11: =H11-N11 -> 0.0006493506494 | P11: 2017-12-27
A12: 6953D | B12: AI | C12: 1 | D12: ACE RACE | E12: 5 | F12: 4000 | G12: 4000 | H12: 0.75 | I12: 250 | J12: 1000 | K12: =J12*0.1 -> 100 | L12: =J12*0.3 -> 300 | M12: =J12-L12 -> 700 | N12: =(G12-J12)/G12 -> 0.75 | O12: =H12-N12 -> 0 | P12: 2017-12-27
A13: 6954D | B13: AI | C13: 1 | D13: ACE RACE | E13: 5 | F13: 4000 | G13: 4000 | H13: 0.75 | I13: 500 | J13: 1000 | K13: =J13*0.1 -> 100 | L13: =J13*0.3 -> 300 | M13: =J13-L13 -> 700 | N13: =(G13-J13)/G13 -> 0.75 | O13: =H13-N13 -> 0 | P13: 2017-12-27
A14: 6955D | B14: AI | C14: 1 | D14: ACE RACE | E14: 5 | F14: 4000 | G14: 4000 | H14: 0.75 | I14: 500 | J14: 1000 | K14: =J14*0.1 -> 100 | L14: =J14*0.3 -> 300 | M14: =J14-L14 -> 700 | N14: =(G14-J14)/G14 -> 0.75 | O14: =H14-N14 -> 0 | P14: 2017-12-27
A15: 6959D | B15: AI | C15: 1 | D15: ACE RACE | E15: 5 | F15: 4000 | G15: 4000 | H15: 0.75 | I15: 250 | J15: 1000 | K15: =J15*0.1 -> 100 | L15: =J15*0.3 -> 300 | M15: =J15-L15 -> 700 | N15: =(G15-J15)/G15 -> 0.75 | O15: =H15-N15 -> 0 | P15: 2017-12-27
A16: 6960D | B16: AI | C16: 1 | D16: ACE RACE | E16: 5 | F16: 4000 | G16: 4000 | H16: 0.75 | I16: 599 | J16: 998 | K16: =J16*0.1 -> 99.8 | L16: =J16*0.3 -> 299.4 | M16: =J16-L16 -> 698.6 | N16: =(G16-J16)/G16 -> 0.7505 | O16: =H16-N16 -> -0.0005 | P16: 2017-12-27
A17: 6961D | B17: AI | C17: 1 | D17: ACE RACE | E17: 5 | F17: 4000 | G17: 4000 | H17: 0.75 | I17: 250 | J17: 1000 | K17: =J17*0.1 -> 100 | L17: =J17*0.3 -> 300 | M17: =J17-L17 -> 700 | N17: =(G17-J17)/G17 -> 0.75 | O17: =H17-N17 -> 0 | P17: 2017-12-27
A18: 6962D | B18: AI | C18: 1 | D18: ACE RACE | E18: 5 | F18: 3120 | G18: 3120 | H18: 0.75 | I18: 100 | J18: 780 | K18: =J18*0.1 -> 78 | L18: =J18*0.3 -> 234 | M18: =J18-L18 -> 546 | N18: =(G18-J18)/G18 -> 0.75 | O18: =H18-N18 -> 0 | P18: 2017-12-27
A19: 6963D | B19: AI | C19: 1 | D19: ACE RACE | E19: 5 | F19: 4000 | G19: 4000 | H19: 0.75 | I19: 200 | J19: 1000 | K19: =J19*0.1 -> 100 | L19: =J19*0.3 -> 300 | M19: =J19-L19 -> 700 | N19: =(G19-J19)/G19 -> 0.75 | O19: =H19-N19 -> 0 | P19: 2017-12-27
A20: 6489M | B20: AI | C20: 0.25 | D20: ACE, QUEEN, KING | E20: 5 | F20: 4000 | G20: 1000 | H20: 0.65 | I20: 150 | J20: 350 | K20: =J20*0.1 -> 35 | L20: =J20*0.3 -> 105 | M20: =J20-L20 -> 245 | N20: =(G20-J20)/G20 -> 0.65 | O20: =H20-N20 -> 0 | P20: 2018-08-29
A21: 6490M | B21: AI | C21: 0.5 | D21: ACE, QUEEN, KING | E21: 5 | F21: 4000 | G21: 2000 | H21: 0.7 | I21: 250 | J21: 600 | K21: =J21*0.1 -> 60 | L21: =J21*0.3 -> 180 | M21: =J21-L21 -> 420 | N21: =(G21-J21)/G21 -> 0.7 | O21: =H21-N21 -> 0 | P21: 2018-08-29
A22: 6495M | B22: AI | C22: 0.5 | D22: ACE, QUEEN, KING | E22: 5 | F22: 3080 | G22: 1540 | H22: 0.75 | I22: 100 | J22: 386 | K22: =J22*0.1 -> 38.6 | L22: =J22*0.3 -> 115.8 | M22: =J22-L22 -> 270.2 | N22: =(G22-J22)/G22 -> 0.7493506494 | O22: =H22-N22 -> 0.0006493506494 | P22: 2018-08-29
A23: 6491M | B23: AI | C23: 1 | D23: ACE, QUEEN, KING | E23: 5 | F23: 4000 | G23: 4000 | H23: 0.75 | I23: 500 | J23: 1000 | K23: =J23*0.1 -> 100 | L23: =J23*0.3 -> 300 | M23: =J23-L23 -> 700 | N23: =(G23-J23)/G23 -> 0.75 | O23: =H23-N23 -> 0 | P23: 2018-08-29
A24: 6492M | B24: AI | C24: 1 | D24: ACE, QUEEN, KING | E24: 5 | F24: 4000 | G24: 4000 | H24: 0.75 | I24: 250 | J24: 1000 | K24: =J24*0.1 -> 100 | L24: =J24*0.3 -> 300 | M24: =J24-L24 -> 700 | N24: =(G24-J24)/G24 -> 0.75 | O24: =H24-N24 -> 0 | P24: 2018-08-29
A25: 6493M | B25: AI | C25: 1 | D25: ACE, QUEEN, KING | E25: 5 | F25: 4000 | G25: 4000 | H25: 0.75 | I25: 500 | J25: 1000 | K25: =J25*0.1 -> 100 | L25: =J25*0.3 -> 300 | M25: =J25-L25 -> 700 | N25: =(G25-J25)/G25 -> 0.75 | O25: =H25-N25 -> 0 | P25: 2018-08-29
A26: 6497M | B26: AI | C26: 1 | D26: ACE, QUEEN, KING | E26: 5 | F26: 4000 | G26: 4000 | H26: 0.75 | I26: 599 | J26: 998 | K26: =J26*0.1 -> 99.8 | L26: =J26*0.3 -> 299.4 | M26: =J26-L26 -> 698.6 | N26: =(G26-J26)/G26 -> 0.7505 | O26: =H26-N26 -> -0.0005 | P26: 2018-08-29
A27: 6498M | B27: AI | C27: 1 | D27: ACE, QUEEN, KING | E27: 5 | F27: 4000 | G27: 4000 | H27: 0.75 | I27: 250 | J27: 1000 | K27: =J27*0.1 -> 100 | L27: =J27*0.3 -> 300 | M27: =J27-L27 -> 700 | N27: =(G27-J27)/G27 -> 0.75 | O27: =H27-N27 -> 0 | P27: 2018-08-29
A28: 6499M | B28: AI | C28: 1 | D28: ACE, QUEEN, KING | E28: 5 | F28: 4000 | G28: 4000 | H28: 0.75 | I28: 250 | J28: 1000 | K28: =J28*0.1 -> 100 | L28: =J28*0.3 -> 300 | M28: =J28-L28 -> 700 | N28: =(G28-J28)/G28 -> 0.75 | O28: =H28-N28 -> 0 | P28: 2018-08-29
A29: 6500M | B29: AI | C29: 1 | D29: ACE, QUEEN, KING | E29: 5 | F29: 3120 | G29: 3120 | H29: 0.75 | I29: 100 | J29: 780 | K29: =J29*0.1 -> 78 | L29: =J29*0.3 -> 234 | M29: =J29-L29 -> 546 | N29: =(G29-J29)/G29 -> 0.75 | O29: =H29-N29 -> 0 | P29: 2018-08-29
A30: 5889R | B30: AI | C30: 0.25 | D30: ACES & EIGHT'S | E30: 5 | F30: 2400 | G30: 600 | H30: 0.65 | I30: 50 | J30: 210 | K30: =J30*0.1 -> 21 | L30: =J30*0.3 -> 63 | M30: =J30-L30 -> 147 | N30: =(G30-J30)/G30 -> 0.65 | O30: =H30-N30 -> 0 | P30: 2016-09-28
A31: 5734R | B31: AI | C31: 0.5 | D31: ACES & EIGHT'S | E31: 5 | F31: 6000 | G31: 3000 | H31: 0.75 | I31: 500 | J31: 750 | K31: =J31*0.1 -> 75 | L31: =J31*0.3 -> 225 | M31: =J31-L31 -> 525 | N31: =(G31-J31)/G31 -> 0.75 | O31: =H31-N31 -> 0 | P31: 2016-09-28
A32: 6013F | B32: AI | C32: 0.25 | D32: AIR FORCE | E32: 5 | F32: 4000 | G32: 1000 | H32: 0.65 | I32: 150 | J32: 350 | K32: =J32*0.1 -> 35 | L32: =J32*0.3 -> 105 | M32: =J32-L32 -> 245 | N32: =(G32-J32)/G32 -> 0.65 | O32: =H32-N32 -> 0 | P32: 2017-12-27
A33: 6014F | B33: AI | C33: 0.5 | D33: AIR FORCE | E33: 5 | F33: 4000 | G33: 2000 | H33: 0.7 | I33: 250 | J33: 600 | K33: =J33*0.1 -> 60 | L33: =J33*0.3 -> 180 | M33: =J33-L33 -> 420 | N33: =(G33-J33)/G33 -> 0.7 | O33: =H33-N33 -> 0 | P33: 2017-12-27
A34: 6015F | B34: AI | C34: 0.5 | D34: AIR FORCE | E34: 5 | F34: 3080 | G34: 1540 | H34: 0.75 | I34: 100 | J34: 386 | K34: =J34*0.1 -> 38.6 | L34: =J34*0.3 -> 115.8 | M34: =J34-L34 -> 270.2 | N34: =(G34-J34)/G34 -> 0.7493506494 | O34: =H34-N34 -> 0.0006493506494 | P34: 2017-12-27
A35: 6016F | B35: AI | C35: 1 | D35: AIR FORCE | E35: 5 | F35: 4000 | G35: 4000 | H35: 0.75 | I35: 250 | J35: 1000 | K35: =J35*0.1 -> 100 | L35: =J35*0.3 -> 300 | M35: =J35-L35 -> 700 | N35: =(G35-J35)/G35 -> 0.75 | O35: =H35-N35 -> 0 | P35: 2017-12-27
A36: 6017F | B36: AI | C36: 1 | D36: AIR FORCE | E36: 5 | F36: 4000 | G36: 4000 | H36: 0.75 | I36: 500 | J36: 1000 | K36: =J36*0.1 -> 100 | L36: =J36*0.3 -> 300 | M36: =J36-L36 -> 700 | N36: =(G36-J36)/G36 -> 0.75 | O36: =H36-N36 -> 0 | P36: 2017-12-27
A37: 6018F | B37: AI | C37: 1 | D37: AIR FORCE | E37: 5 | F37: 4000 | G37: 4000 | H37: 0.75 | I37: 500 | J37: 1000 | K37: =J37*0.1 -> 100 | L37: =J37*0.3 -> 300 | M37: =J37-L37 -> 700 | N37: =(G37-J37)/G37 -> 0.75 | O37: =H37-N37 -> 0 | P37: 2017-12-27
A38: 6021F | B38: AI | C38: 1 | D38: AIR FORCE | E38: 5 | F38: 4000 | G38: 4000 | H38: 0.75 | I38: 250 | J38: 1000 | K38: =J38*0.1 -> 100 | L38: =J38*0.3 -> 300 | M38: =J38-L38 -> 700 | N38: =(G38-J38)/G38 -> 0.75 | O38: =H38-N38 -> 0 | P38: 2017-12-27
A39: 6022F | B39: AI | C39: 1 | D39: AIR FORCE | E39: 5 | F39: 4000 | G39: 4000 | H39: 0.75 | I39: 599 | J39: 998 | K39: =J39*0.1 -> 99.8 | L39: =J39*0.3 -> 299.4 | M39: =J39-L39 -> 698.6 | N39: =(G39-J39)/G39 -> 0.7505 | O39: =H39-N39 -> -0.0005 | P39: 2017-12-27
A40: 6023F | B40: AI | C40: 1 | D40: AIR FORCE | E40: 5 | F40: 4000 | G40: 4000 | H40: 0.75 | I40: 250 | J40: 1000 | K40: =J40*0.1 -> 100 | L40: =J40*0.3 -> 300 | M40: =J40-L40 -> 700 | N40: =(G40-J40)/G40 -> 0.75 | O40: =H40-N40 -> 0 | P40: 2017-12-27
A41: 6024F | B41: AI | C41: 1 | D41: AIR FORCE | E41: 5 | F41: 3120 | G41: 3120 | H41: 0.75 | I41: 100 | J41: 780 | K41: =J41*0.1 -> 78 | L41: =J41*0.3 -> 234 | M41: =J41-L41 -> 546 | N41: =(G41-J41)/G41 -> 0.75 | O41: =H41-N41 -> 0 | P41: 2017-12-27
A42: 5494Z | B42: AI | C42: 0.25 | D42: ALL IN ACTION | E42: 5 | F42: 4000 | G42: 1000 | H42: 0.65 | I42: 150 | J42: 350 | K42: =SUM(J42*0.1) -> 35 | L42: =SUM(J42*0.3) -> 105 | M42: =SUM(J42-L42) -> 245 | N42: =SUM(G42-J42)/G42 -> 0.65 | O42: =SUM(H42-N42) -> 0 | P42: 2017-08-02
A43: 5495Z | B43: AI | C43: 0.5 | D43: ALL IN ACTION | E43: 5 | F43: 4000 | G43: 2000 | H43: 0.7 | I43: 250 | J43: 600 | K43: =SUM(J43*0.1) -> 60 | L43: =SUM(J43*0.3) -> 180 | M43: =SUM(J43-L43) -> 420 | N43: =SUM(G43-J43)/G43 -> 0.7 | O43: =SUM(H43-N43) -> 0 | P43: 2017-08-02
A44: 5496Z | B44: AI | C44: 0.5 | D44: ALL IN ACTION | E44: 5 | F44: 3080 | G44: 1540 | H44: 0.75 | I44: 100 | J44: 386 | K44: =SUM(J44*0.1) -> 38.6 | L44: =SUM(J44*0.3) -> 115.8 | M44: =SUM(J44-L44) -> 270.2 | N44: =SUM(G44-J44)/G44 -> 0.7493506494 | O44: =SUM(H44-N44) -> 0.0006493506494 | P44: 2017-08-02
A45: 5497Z | B45: AI | C45: 0.5 | D45: ALL IN ACTION | E45: 5 | F45: 2400 | G45: 1200 | H45: 0.66 | I45: 100 | J45: 410 | K45: =SUM(J45*0.1) -> 41 | L45: =SUM(J45*0.3) -> 123 | M45: =SUM(J45-L45) -> 287 | N45: =SUM(G45-J45)/G45 -> 0.6583333333 | O45: =SUM(H45-N45) -> 0.001666666667 | P45: 2017-08-02
A46: 5498Z | B46: AI | C46: 0.5 | D46: ALL IN ACTION | E46: 5 | F46: 4000 | G46: 2000 | H46: 0.7 | I46: 250 | J46: 600 | K46: =SUM(J46*0.1) -> 60 | L46: =SUM(J46*0.3) -> 180 | M46: =SUM(J46-L46) -> 420 | N46: =SUM(G46-J46)/G46 -> 0.7 | O46: =SUM(H46-N46) -> 0 | P46: 2017-08-02
A47: 5499Z | B47: AI | C47: 0.5 | D47: ALL IN ACTION | E47: 5 | F47: 4000 | G47: 2000 | H47: 0.71 | I47: 250 | J47: 580 | K47: =SUM(J47*0.1) -> 58 | L47: =SUM(J47*0.3) -> 174 | M47: =SUM(J47-L47) -> 406 | N47: =SUM(G47-J47)/G47 -> 0.71 | O47: =SUM(H47-N47) -> 0 | P47: 2017-08-02
A48: 5500Z | B48: AI | C48: 1 | D48: ALL IN ACTION | E48: 5 | F48: 4000 | G48: 4000 | H48: 0.75 | I48: 250 | J48: 1000 | K48: =SUM(J48*0.1) -> 100 | L48: =SUM(J48*0.3) -> 300 | M48: =SUM(J48-L48) -> 700 | N48: =SUM(G48-J48)/G48 -> 0.75 | O48: =SUM(H48-N48) -> 0 | P48: 2017-08-02
A49: 5501Z | B49: AI | C49: 1 | D49: ALL IN ACTION | E49: 5 | F49: 4000 | G49: 4000 | H49: 0.75 | I49: 500 | J49: 1000 | K49: =SUM(J49*0.1) -> 100 | L49: =SUM(J49*0.3) -> 300 | M49: =SUM(J49-L49) -> 700 | N49: =SUM(G49-J49)/G49 -> 0.75 | O49: =SUM(H49-N49) -> 0 | P49: 2017-08-02
A50: 5503Z | B50: AI | C50: 1 | D50: ALL IN ACTION | E50: 5 | F50: 4000 | G50: 4000 | H50: 0.75 | I50: 500 | J50: 1000 | K50: =SUM(J50*0.1) -> 100 | L50: =SUM(J50*0.3) -> 300 | M50: =SUM(J50-L50) -> 700 | N50: =SUM(G50-J50)/G50 -> 0.75 | O50: =SUM(H50-N50) -> 0 | P50: 2017-08-02
A51: 5505Z | B51: AI | C51: 1 | D51: ALL IN ACTION | E51: 5 | F51: 4000 | G51: 4000 | H51: 0.75 | I51: 599 | J51: 998 | K51: =SUM(J51*0.1) -> 99.8 | L51: =SUM(J51*0.3) -> 299.4 | M51: =SUM(J51-L51) -> 698.6 | N51: =SUM(G51-J51)/G51 -> 0.7505 | O51: =SUM(H51-N51) -> -0.0005 | P51: 2017-08-02
A52: 5506Z | B52: AI | C52: 1 | D52: ALL IN ACTION | E52: 5 | F52: 4000 | G52: 4000 | H52: 0.75 | I52: 250 | J52: 1000 | K52: =SUM(J52*0.1) -> 100 | L52: =SUM(J52*0.3) -> 300 | M52: =SUM(J52-L52) -> 700 | N52: =SUM(G52-J52)/G52 -> 0.75 | O52: =SUM(H52-N52) -> 0 | P52: 2017-08-02
A53: 5507Z | B53: AI | C53: 1 | D53: ALL IN ACTION | E53: 5 | F53: 4000 | G53: 4000 | H53: 0.75 | I53: 250 | J53: 1000 | K53: =SUM(J53*0.1) -> 100 | L53: =SUM(J53*0.3) -> 300 | M53: =SUM(J53-L53) -> 700 | N53: =SUM(G53-J53)/G53 -> 0.75 | O53: =SUM(H53-N53) -> 0 | P53: 2017-08-02
A54: 5508Z | B54: AI | C54: 1 | D54: ALL IN ACTION | E54: 5 | F54: 3120 | G54: 3120 | H54: 0.75 | I54: 100 | J54: 780 | K54: =SUM(J54*0.1) -> 78 | L54: =SUM(J54*0.3) -> 234 | M54: =SUM(J54-L54) -> 546 | N54: =SUM(G54-J54)/G54 -> 0.75 | O54: =SUM(H54-N54) -> 0 | P54: 2017-08-02
A55: 5509Z | B55: AI | C55: 1 | D55: ALL IN ACTION | E55: 5 | F55: 4000 | G55: 4000 | H55: 0.75 | I55: 500 | J55: 1000 | K55: =SUM(J55*0.1) -> 100 | L55: =SUM(J55*0.3) -> 300 | M55: =SUM(J55-L55) -> 700 | N55: =SUM(G55-J55)/G55 -> 0.75 | O55: =SUM(H55-N55) -> 0 | P55: 2017-08-02
A56: 5511Z | B56: AI | C56: 1 | D56: ALL IN ACTION | E56: 5 | F56: 4000 | G56: 4000 | H56: 0.75 | I56: 200 | J56: 1000 | K56: =SUM(J56*0.1) -> 100 | L56: =SUM(J56*0.3) -> 300 | M56: =SUM(J56-L56) -> 700 | N56: =SUM(G56-J56)/G56 -> 0.75 | O56: =SUM(H56-N56) -> 0 | P56: 2017-08-02
A57: 5512Z | B57: AI | C57: 1 | D57: ALL IN ACTION | E57: 5 | F57: 1440 | G57: 1440 | H57: 0.75 | I57: 100 | J57: 360 | K57: =SUM(J57*0.1) -> 36 | L57: =SUM(J57*0.3) -> 108 | M57: =SUM(J57-L57) -> 252 | N57: =SUM(G57-J57)/G57 -> 0.75 | O57: =SUM(H57-N57) -> 0 | P57: 2017-08-02
A58: 5464F | B58: AI | C58: 0.25 | D58: ALL TOO REEL | E58: 5 | F58: 2400 | G58: 600 | H58: 0.71 | I58: 75 | J58: 175 | K58: =J58*0.1 -> 17.5 | L58: =J58*0.3 -> 52.5 | M58: =J58-L58 -> 122.5 | N58: =(G58-J58)/G58 -> 0.7083333333 | O58: =H58-N58 -> 0.001666666667 | P58: 2015-10-21
A59: 5469F | B59: AI | C59: 1 | D59: ALL TOO REEL | E59: 5 | F59: 4000 | G59: 4000 | H59: 0.75 | I59: 500 | J59: 1000 | K59: =J59*0.1 -> 100 | L59: =J59*0.3 -> 300 | M59: =J59-L59 -> 700 | N59: =(G59-J59)/G59 -> 0.75 | O59: =H59-N59 -> 0 | P59: 2015-10-21
A60: 5647J | B60: AI | C60: 0.5 | D60: BAG-A-BUCKS | E60: 5 | F60: 6000 | G60: 3000 | H60: 0.75 | I60: 500 | J60: 750 | K60: =J60*0.1 -> 75 | L60: =J60*0.3 -> 225 | M60: =J60-L60 -> 525 | N60: =(G60-J60)/G60 -> 0.75 | O60: =H60-N60 -> 0 | P60: 2016-01-27
A61: 5662J | B61: AI | C61: 1 | D61: BAG-A-BUCKS | E61: 5 | F61: 4000 | G61: 4000 | H61: 0.73 | I61: 100 | J61: 1100 | K61: =J61*0.1 -> 110 | L61: =J61*0.3 -> 330 | M61: =J61-L61 -> 770 | N61: =(G61-J61)/G61 -> 0.725 | O61: =H61-N61 -> 0.005 | P61: 2016-01-27
A62: 5519P | B62: AI | C62: 1 | D62: BANK ROLL | E62: 5 | F62: 4000 | G62: 4000 | H62: 0.75 | I62: 500 | J62: 1000 | K62: =J62*0.1 -> 100 | L62: =J62*0.3 -> 300 | M62: =J62-L62 -> 700 | N62: =(G62-J62)/G62 -> 0.75 | O62: =H62-N62 -> 0 | P62: 2016-06-29
A63: 6881X | B63: AI | C63: 0.25 | D63: BANK THE BUCKS | E63: 5 | F63: 4000 | G63: =+F63*C63 -> 1000 | H63: 0.65 | I63: 150 | J63: 350 | K63: =+J63*0.1 -> 35 | L63: =SUM(J63*0.3) -> 105 | M63: =SUM(J63-L63) -> 245 | N63: =SUM((G63-J63)/G63) -> 0.65 | O63: =SUM(H63-N63) -> 0 | P63: 2020-01-22
A64: 6882X | B64: AI | C64: 0.5 | D64: BANK THE BUCKS | E64: 5 | F64: 4000 | G64: =+F64*C64 -> 2000 | H64: 0.7 | I64: 250 | J64: 600 | K64: =+J64*0.1 -> 60 | L64: =SUM(J64*0.3) -> 180 | M64: =SUM(J64-L64) -> 420 | N64: =SUM((G64-J64)/G64) -> 0.7 | O64: =SUM(H64-N64) -> 0 | P64: 2020-01-22
A65: 6887X | B65: AI | C65: 0.5 | D65: BANK THE BUCKS | E65: 5 | F65: 3080 | G65: =+F65*C65 -> 1540 | H65: 0.7494 | I65: 100 | J65: 386 | K65: =+J65*0.1 -> 38.6 | L65: =SUM(J65*0.3) -> 115.8 | M65: =SUM(J65-L65) -> 270.2 | N65: =SUM((G65-J65)/G65) -> 0.7493506494 | O65: =SUM(H65-N65) -> 4.935064935e-05 | P65: 2020-01-22
A66: 6883X | B66: AI | C66: 1 | D66: BANK THE BUCKS | E66: 5 | F66: 4000 | G66: =+F66*C66 -> 4000 | H66: 0.75 | I66: 500 | J66: 1000 | K66: =+J66*0.1 -> 100 | L66: =SUM(J66*0.3) -> 300 | M66: =SUM(J66-L66) -> 700 | N66: =SUM((G66-J66)/G66) -> 0.75 | O66: =SUM(H66-N66) -> 0 | P66: 2020-01-22
A67: 6884X | B67: AI | C67: 1 | D67: BANK THE BUCKS | E67: 5 | F67: 4000 | G67: =+F67*C67 -> 4000 | H67: 0.75 | I67: 250 | J67: 1000 | K67: =+J67*0.1 -> 100 | L67: =SUM(J67*0.3) -> 300 | M67: =SUM(J67-L67) -> 700 | N67: =SUM((G67-J67)/G67) -> 0.75 | O67: =SUM(H67-N67) -> 0 | P67: 2020-01-22
A68: 6885X | B68: AI | C68: 1 | D68: BANK THE BUCKS | E68: 5 | F68: 4000 | G68: =+F68*C68 -> 4000 | H68: 0.75 | I68: 500 | J68: 1000 | K68: =+J68*0.1 -> 100 | L68: =SUM(J68*0.3) -> 300 | M68: =SUM(J68-L68) -> 700 | N68: =SUM((G68-J68)/G68) -> 0.75 | O68: =SUM(H68-N68) -> 0 | P68: 2020-01-22
A69: 6889X | B69: AI | C69: 1 | D69: BANK THE BUCKS | E69: 5 | F69: 4000 | G69: =+F69*C69 -> 4000 | H69: 0.7505 | I69: 599 | J69: 998 | K69: =+J69*0.1 -> 99.8 | L69: =SUM(J69*0.3) -> 299.4 | M69: =SUM(J69-L69) -> 698.6 | N69: =SUM((G69-J69)/G69) -> 0.7505 | O69: =SUM(H69-N69) -> 0 | P69: 2020-01-22
A70: 6890X | B70: AI | C70: 1 | D70: BANK THE BUCKS | E70: 5 | F70: 4000 | G70: =+F70*C70 -> 4000 | H70: 0.75 | I70: 250 | J70: 1000 | K70: =+J70*0.1 -> 100 | L70: =SUM(J70*0.3) -> 300 | M70: =SUM(J70-L70) -> 700 | N70: =SUM((G70-J70)/G70) -> 0.75 | O70: =SUM(H70-N70) -> 0 | P70: 2020-01-22
A71: 6891X | B71: AI | C71: 1 | D71: BANK THE BUCKS | E71: 5 | F71: 4000 | G71: =+F71*C71 -> 4000 | H71: 0.75 | I71: 250 | J71: 1000 | K71: =+J71*0.1 -> 100 | L71: =SUM(J71*0.3) -> 300 | M71: =SUM(J71-L71) -> 700 | N71: =SUM((G71-J71)/G71) -> 0.75 | O71: =SUM(H71-N71) -> 0 | P71: 2020-01-22
A72: 6892X | B72: AI | C72: 1 | D72: BANK THE BUCKS | E72: 5 | F72: 3120 | G72: =+F72*C72 -> 3120 | H72: 0.75 | I72: 100 | J72: 780 | K72: =+J72*0.1 -> 78 | L72: =SUM(J72*0.3) -> 234 | M72: =SUM(J72-L72) -> 546 | N72: =SUM((G72-J72)/G72) -> 0.75 | O72: =SUM(H72-N72) -> 0 | P72: 2020-01-22
A73: 6773X | B73: AI | C73: 0.25 | D73: BANKERS CHOICE | E73: 5 | F73: 4000 | G73: =+F73*C73 -> 1000 | H73: 0.65 | I73: 150 | J73: 350 | K73: =+J73*0.1 -> 35 | L73: =SUM(J73*0.3) -> 105 | M73: =SUM(J73-L73) -> 245 | N73: =SUM((G73-J73)/G73) -> 0.65 | O73: =SUM(H73-N73) -> 0 | P73: 2019-11-06
A74: 6774X | B74: AI | C74: 0.5 | D74: BANKERS CHOICE | E74: 5 | F74: 4000 | G74: =+F74*C74 -> 2000 | H74: 0.7 | I74: 250 | J74: 600 | K74: =+J74*0.1 -> 60 | L74: =SUM(J74*0.3) -> 180 | M74: =SUM(J74-L74) -> 420 | N74: =SUM((G74-J74)/G74) -> 0.7 | O74: =SUM(H74-N74) -> 0 | P74: 2019-11-06
A75: 6779X | B75: AI | C75: 0.5 | D75: BANKERS CHOICE | E75: 5 | F75: 3080 | G75: =+F75*C75 -> 1540 | H75: 0.7494 | I75: 100 | J75: 386 | K75: =+J75*0.1 -> 38.6 | L75: =SUM(J75*0.3) -> 115.8 | M75: =SUM(J75-L75) -> 270.2 | N75: =SUM((G75-J75)/G75) -> 0.7493506494 | O75: =SUM(H75-N75) -> 4.935064935e-05 | P75: 2019-11-06
A76: 7093B | B76: AI | C76: 0.5 | D76: BANKERS CHOICE | E76: 5 | F76: 6000 | G76: =+F76*C76 -> 3000 | H76: 0.75 | I76: 500 | J76: 750 | K76: =+J76*0.1 -> 75 | L76: =SUM(J76*0.3) -> 225 | M76: =SUM(J76-L76) -> 525 | N76: =SUM((G76-J76)/G76) -> 0.75 | O76: =SUM(H76-N76) -> 0 | P76: 2020-01-15
A77: 6775X | B77: AI | C77: 1 | D77: BANKERS CHOICE | E77: 5 | F77: 4000 | G77: =+F77*C77 -> 4000 | H77: 0.75 | I77: 500 | J77: 1000 | K77: =+J77*0.1 -> 100 | L77: =SUM(J77*0.3) -> 300 | M77: =SUM(J77-L77) -> 700 | N77: =SUM((G77-J77)/G77) -> 0.75 | O77: =SUM(H77-N77) -> 0 | P77: 2019-11-06
A78: 6776X | B78: AI | C78: 1 | D78: BANKERS CHOICE | E78: 5 | F78: 4000 | G78: =+F78*C78 -> 4000 | H78: 0.75 | I78: 250 | J78: 1000 | K78: =+J78*0.1 -> 100 | L78: =SUM(J78*0.3) -> 300 | M78: =SUM(J78-L78) -> 700 | N78: =SUM((G78-J78)/G78) -> 0.75 | O78: =SUM(H78-N78) -> 0 | P78: 2019-11-06
A79: 6777X | B79: AI | C79: 1 | D79: BANKERS CHOICE | E79: 5 | F79: 4000 | G79: =+F79*C79 -> 4000 | H79: 0.75 | I79: 500 | J79: 1000 | K79: =+J79*0.1 -> 100 | L79: =SUM(J79*0.3) -> 300 | M79: =SUM(J79-L79) -> 700 | N79: =SUM((G79-J79)/G79) -> 0.75 | O79: =SUM(H79-N79) -> 0 | P79: 2019-11-06
A80: 6781X | B80: AI | C80: 1 | D80: BANKERS CHOICE | E80: 5 | F80: 4000 | G80: =+F80*C80 -> 4000 | H80: 0.7505 | I80: 599 | J80: 998 | K80: =+J80*0.1 -> 99.8 | L80: =SUM(J80*0.3) -> 299.4 | M80: =SUM(J80-L80) -> 698.6 | N80: =SUM((G80-J80)/G80) -> 0.7505 | O80: =SUM(H80-N80) -> 0 | P80: 2019-11-06
A81: 6782X | B81: AI | C81: 1 | D81: BANKERS CHOICE | E81: 5 | F81: 4000 | G81: =+F81*C81 -> 4000 | H81: 0.75 | I81: 250 | J81: 1000 | K81: =+J81*0.1 -> 100 | L81: =SUM(J81*0.3) -> 300 | M81: =SUM(J81-L81) -> 700 | N81: =SUM((G81-J81)/G81) -> 0.75 | O81: =SUM(H81-N81) -> 0 | P81: 2019-11-06
A82: 6783X | B82: AI | C82: 1 | D82: BANKERS CHOICE | E82: 5 | F82: 4000 | G82: =+F82*C82 -> 4000 | H82: 0.75 | I82: 250 | J82: 1000 | K82: =+J82*0.1 -> 100 | L82: =SUM(J82*0.3) -> 300 | M82: =SUM(J82-L82) -> 700 | N82: =SUM((G82-J82)/G82) -> 0.75 | O82: =SUM(H82-N82) -> 0 | P82: 2019-11-06
A83: 6784X | B83: AI | C83: 1 | D83: BANKERS CHOICE | E83: 5 | F83: 3120 | G83: =+F83*C83 -> 3120 | H83: 0.75 | I83: 100 | J83: 780 | K83: =+J83*0.1 -> 78 | L83: =SUM(J83*0.3) -> 234 | M83: =SUM(J83-L83) -> 546 | N83: =SUM((G83-J83)/G83) -> 0.75 | O83: =SUM(H83-N83) -> 0 | P83: 2019-11-06
A84: 6126X | B84: AI | C84: 0.25 | D84: BARREL OF BUCKS | E84: 5 | F84: 4000 | G84: 1000 | H84: 0.65 | I84: 150 | J84: 350 | K84: 35 | L84: 105 | M84: 245 | N84: 0.65 | O84: 0 | P84: 2019-09-04
A85: 6127X | B85: AI | C85: 0.5 | D85: BARREL OF BUCKS | E85: 5 | F85: 4000 | G85: 2000 | H85: 0.7 | I85: 250 | J85: 600 | K85: 60 | L85: 180 | M85: 420 | N85: 0.7 | O85: 0 | P85: 2019-09-04
A86: 6132X | B86: AI | C86: 0.5 | D86: BARREL OF BUCKS | E86: 5 | F86: 3080 | G86: 1540 | H86: 0.7494 | I86: 100 | J86: 386 | K86: 38.6 | L86: 115.8 | M86: 270.2 | N86: 0.7493506494 | O86: 4.935064935e-05 | P86: 2019-09-04
A87: 6128X | B87: AI | C87: 1 | D87: BARREL OF BUCKS | E87: 5 | F87: 4000 | G87: 4000 | H87: 0.75 | I87: 500 | J87: 1000 | K87: 100 | L87: 300 | M87: 700 | N87: 0.75 | O87: 0 | P87: 2019-09-04
A88: 6129X | B88: AI | C88: 1 | D88: BARREL OF BUCKS | E88: 5 | F88: 4000 | G88: 4000 | H88: 0.75 | I88: 250 | J88: 1000 | K88: 100 | L88: 300 | M88: 700 | N88: 0.75 | O88: 0 | P88: 2019-09-04
A89: 6130X | B89: AI | C89: 1 | D89: BARREL OF BUCKS | E89: 5 | F89: 4000 | G89: 4000 | H89: 0.75 | I89: 500 | J89: 1000 | K89: 100 | L89: 300 | M89: 700 | N89: 0.75 | O89: 0 | P89: 2019-09-04
A90: 6134X | B90: AI | C90: 1 | D90: BARREL OF BUCKS | E90: 5 | F90: 4000 | G90: 4000 | H90: 0.7505 | I90: 599 | J90: 998 | K90: 99.8 | L90: 299.4 | M90: 698.6 | N90: 0.7505 | O90: 0 | P90: 2019-09-04
A91: 6135X | B91: AI | C91: 1 | D91: BARREL OF BUCKS | E91: 5 | F91: 4000 | G91: 4000 | H91: 0.75 | I91: 250 | J91: 1000 | K91: 100 | L91: 300 | M91: 700 | N91: 0.75 | O91: 0 | P91: 2019-09-04
A92: 6136X | B92: AI | C92: 1 | D92: BARREL OF BUCKS | E92: 5 | F92: 4000 | G92: 4000 | H92: 0.75 | I92: 250 | J92: 1000 | K92: 100 | L92: 300 | M92: 700 | N92: 0.75 | O92: 0 | P92: 2019-09-04
A93: 6137X | B93: AI | C93: 1 | D93: BARREL OF BUCKS | E93: 5 | F93: 3120 | G93: 3120 | H93: 0.75 | I93: 100 | J93: 780 | K93: 78 | L93: 234 | M93: 546 | N93: 0.75 | O93: 0 | P93: 2019-09-04
A94: 6961H | B94: AI | C94: 0.25 | D94: BARS & STARS | E94: 5 | F94: 4000 | G94: 1000 | H94: 0.65 | I94: 150 | J94: 350 | K94: =J94*0.1 -> 35 | L94: =J94*0.3 -> 105 | M94: =J94-L94 -> 245 | N94: =(G94-J94)/G94 -> 0.65 | O94: =H94-N94 -> 0 | P94: 2018-02-28
A95: 6962H | B95: AI | C95: 0.5 | D95: BARS & STARS | E95: 5 | F95: 4000 | G95: 2000 | H95: 0.7 | I95: 250 | J95: 600 | K95: =J95*0.1 -> 60 | L95: =J95*0.3 -> 180 | M95: =J95-L95 -> 420 | N95: =(G95-J95)/G95 -> 0.7 | O95: =H95-N95 -> 0 | P95: 2018-02-28
A96: 6967H | B96: AI | C96: 0.5 | D96: BARS & STARS | E96: 5 | F96: 3080 | G96: 1540 | H96: 0.75 | I96: 100 | J96: 386 | K96: =J96*0.1 -> 38.6 | L96: =J96*0.3 -> 115.8 | M96: =J96-L96 -> 270.2 | N96: =(G96-J96)/G96 -> 0.7493506494 | O96: =H96-N96 -> 0.0006493506494 | P96: 2018-02-28
A97: 6963H | B97: AI | C97: 1 | D97: BARS & STARS | E97: 5 | F97: 4000 | G97: 4000 | H97: 0.75 | I97: 500 | J97: 1000 | K97: =J97*0.1 -> 100 | L97: =J97*0.3 -> 300 | M97: =J97-L97 -> 700 | N97: =(G97-J97)/G97 -> 0.75 | O97: =H97-N97 -> 0 | P97: 2018-02-28
A98: 6964H | B98: AI | C98: 1 | D98: BARS & STARS | E98: 5 | F98: 4000 | G98: 4000 | H98: 0.75 | I98: 250 | J98: 1000 | K98: =J98*0.1 -> 100 | L98: =J98*0.3 -> 300 | M98: =J98-L98 -> 700 | N98: =(G98-J98)/G98 -> 0.75 | O98: =H98-N98 -> 0 | P98: 2018-02-28
A99: 6965H | B99: AI | C99: 1 | D99: BARS & STARS | E99: 5 | F99: 4000 | G99: 4000 | H99: 0.75 | I99: 500 | J99: 1000 | K99: =J99*0.1 -> 100 | L99: =J99*0.3 -> 300 | M99: =J99-L99 -> 700 | N99: =(G99-J99)/G99 -> 0.75 | O99: =H99-N99 -> 0 | P99: 2018-02-28
A100: 6969H | B100: AI | C100: 1 | D100: BARS & STARS | E100: 5 | F100: 4000 | G100: 4000 | H100: 0.75 | I100: 599 | J100: 998 | K100: =J100*0.1 -> 99.8 | L100: =J100*0.3 -> 299.4 | M100: =J100-L100 -> 698.6 | N100: =(G100-J100)/G100 -> 0.7505 | O100: =H100-N100 -> -0.0005 | P100: 2018-02-28
A101: 6970H | B101: AI | C101: 1 | D101: BARS & STARS | E101: 5 | F101: 4000 | G101: 4000 | H101: 0.75 | I101: 250 | J101: 1000 | K101: =J101*0.1 -> 100 | L101: =J101*0.3 -> 300 | M101: =J101-L101 -> 700 | N101: =(G101-J101)/G101 -> 0.75 | O101: =H101-N101 -> 0 | P101: 2018-02-28
A102: 6971H | B102: AI | C102: 1 | D102: BARS & STARS | E102: 5 | F102: 4000 | G102: 4000 | H102: 0.75 | I102: 250 | J102: 1000 | K102: =J102*0.1 -> 100 | L102: =J102*0.3 -> 300 | M102: =J102-L102 -> 700 | N102: =(G102-J102)/G102 -> 0.75 | O102: =H102-N102 -> 0 | P102: 2018-02-28
A103: 6972H | B103: AI | C103: 1 | D103: BARS & STARS | E103: 5 | F103: 3120 | G103: 3120 | H103: 0.75 | I103: 100 | J103: 780 | K103: =J103*0.1 -> 78 | L103: =J103*0.3 -> 234 | M103: =J103-L103 -> 546 | N103: =(G103-J103)/G103 -> 0.75 | O103: =H103-N103 -> 0 | P103: 2018-02-28
A104: 6826G | B104: AI | C104: 0.25 | D104: BASEBALL FEVER | E104: 5 | F104: 4000 | G104: 1000 | H104: 0.65 | I104: 150 | J104: 350 | K104: =J104*0.1 -> 35 | L104: =J104*0.3 -> 105 | M104: =J104-L104 -> 245 | N104: =(G104-J104)/G104 -> 0.65 | O104: =H104-N104 -> 0 | P104: 2018-02-28
A105: 6527G | B105: AI | C105: 0.5 | D105: BASEBALL FEVER | E105: 5 | F105: 4000 | G105: 2000 | H105: 0.7 | I105: 250 | J105: 600 | K105: =J105*0.1 -> 60 | L105: =J105*0.3 -> 180 | M105: =J105-L105 -> 420 | N105: =(G105-J105)/G105 -> 0.7 | O105: =H105-N105 -> 0 | P105: 2018-02-28
A106: 6528G | B106: AI | C106: 0.5 | D106: BASEBALL FEVER | E106: 5 | F106: 3080 | G106: 1540 | H106: 0.75 | I106: 100 | J106: 386 | K106: =J106*0.1 -> 38.6 | L106: =J106*0.3 -> 115.8 | M106: =J106-L106 -> 270.2 | N106: =(G106-J106)/G106 -> 0.7493506494 | O106: =H106-N106 -> 0.0006493506494 | P106: 2018-02-28
A107: 6529G | B107: AI | C107: 0.5 | D107: BASEBALL FEVER | E107: 5 | F107: 6000 | G107: 3000 | H107: 0.75 | I107: 500 | J107: 750 | K107: =J107*0.1 -> 75 | L107: =J107*0.3 -> 225 | M107: =J107-L107 -> 525 | N107: =(G107-J107)/G107 -> 0.75 | O107: =H107-N107 -> 0 | P107: 2016-12-28
A108: 6530G | B108: AI | C108: 1 | D108: BASEBALL FEVER | E108: 5 | F108: 4000 | G108: 4000 | H108: 0.75 | I108: 250 | J108: 1000 | K108: =J108*0.1 -> 100 | L108: =J108*0.3 -> 300 | M108: =J108-L108 -> 700 | N108: =(G108-J108)/G108 -> 0.75 | O108: =H108-N108 -> 0 | P108: 2016-12-28
A109: 6531G | B109: AI | C109: 1 | D109: BASEBALL FEVER | E109: 5 | F109: 4000 | G109: 4000 | H109: 0.75 | I109: 500 | J109: 1000 | K109: =J109*0.1 -> 100 | L109: =J109*0.3 -> 300 | M109: =J109-L109 -> 700 | N109: =(G109-J109)/G109 -> 0.75 | O109: =H109-N109 -> 0 | P109: 2016-12-28
A110: 6533G | B110: AI | C110: 1 | D110: BASEBALL FEVER | E110: 5 | F110: 4000 | G110: 4000 | H110: 0.75 | I110: 500 | J110: 1000 | K110: =J110*0.1 -> 100 | L110: =J110*0.3 -> 300 | M110: =J110-L110 -> 700 | N110: =(G110-J110)/G110 -> 0.75 | O110: =H110-N110 -> 0 | P110: 2016-12-28
A111: 6535G | B111: AI | C111: 1 | D111: BASEBALL FEVER | E111: 5 | F111: 4000 | G111: 4000 | H111: 0.75 | I111: 599 | J111: 998 | K111: =J111*0.1 -> 99.8 | L111: =J111*0.3 -> 299.4 | M111: =J111-L111 -> 698.6 | N111: =(G111-J111)/G111 -> 0.7505 | O111: =H111-N111 -> -0.0005 | P111: 2016-12-28
A112: 6536G | B112: AI | C112: 1 | D112: BASEBALL FEVER | E112: 5 | F112: 4000 | G112: 4000 | H112: 0.75 | I112: 250 | J112: 1000 | K112: =J112*0.1 -> 100 | L112: =J112*0.3 -> 300 | M112: =J112-L112 -> 700 | N112: =(G112-J112)/G112 -> 0.75 | O112: =H112-N112 -> 0 | P112: 2016-12-28
A113: 6537G | B113: AI | C113: 1 | D113: BASEBALL FEVER | E113: 5 | F113: 4000 | G113: 4000 | H113: 0.75 | I113: 250 | J113: 1000 | K113: =J113*0.1 -> 100 | L113: =J113*0.3 -> 300 | M113: =J113-L113 -> 700 | N113: =(G113-J113)/G113 -> 0.75 | O113: =H113-N113 -> 0 | P113: 2016-12-28
A114: 6539G | B114: AI | C114: 1 | D114: BASEBALL FEVER | E114: 5 | F114: 3120 | G114: 3120 | H114: 0.75 | I114: 100 | J114: 780 | K114: =J114*0.1 -> 78 | L114: =J114*0.3 -> 234 | M114: =J114-L114 -> 546 | N114: =(G114-J114)/G114 -> 0.75 | O114: =H114-N114 -> 0 | P114: 2016-09-14
A115: 6541G | B115: AI | C115: 1 | D115: BASEBALL FEVER | E115: 5 | F115: 4000 | G115: 4000 | H115: 0.75 | I115: 200 | J115: 1000 | K115: =J115*0.1 -> 100 | L115: =J115*0.3 -> 300 | M115: =J115-L115 -> 700 | N115: =(G115-J115)/G115 -> 0.75 | O115: =H115-N115 -> 0 | P115: 2016-09-14
A116: 6542G | B116: AI | C116: 1 | D116: BASEBALL FEVER | E116: 5 | F116: 4000 | G116: 4000 | H116: 0.76 | I116: 500 | J116: 975 | K116: =J116*0.1 -> 97.5 | L116: =J116*0.3 -> 292.5 | M116: =J116-L116 -> 682.5 | N116: =(G116-J116)/G116 -> 0.75625 | O116: =H116-N116 -> 0.00375 | P116: 2016-09-14
A117: 5012W | B117: AI | C117: 0.25 | D117: BEACH BALL BOUNTY | E117: 5 | F117: 4000 | G117: 1000 | H117: 0.65 | I117: 150 | J117: 350 | K117: =SUM(J117*0.1) -> 35 | L117: =SUM(J117*0.3) -> 105 | M117: =SUM(J117-L117) -> 245 | N117: =SUM(G117-J117)/G117 -> 0.65 | O117: =SUM(H117-N117) -> 0 | P117: 2018-02-28
A118: 5013W | B118: AI | C118: 0.5 | D118: BEACH BALL BOUNTY | E118: 5 | F118: 3080 | G118: 1540 | H118: 0.75 | I118: 100 | J118: 386 | K118: =SUM(J118*0.1) -> 38.6 | L118: =SUM(J118*0.3) -> 115.8 | M118: =SUM(J118-L118) -> 270.2 | N118: =SUM(G118-J118)/G118 -> 0.7493506494 | O118: =SUM(H118-N118) -> 0.0006493506494 | P118: 2018-02-28
A119: 5014W | B119: AI | C119: 0.5 | D119: BEACH BALL BOUNTY | E119: 5 | F119: 4000 | G119: 2000 | H119: 0.7 | I119: 250 | J119: 600 | K119: =SUM(J119*0.1) -> 60 | L119: =SUM(J119*0.3) -> 180 | M119: =SUM(J119-L119) -> 420 | N119: =SUM(G119-J119)/G119 -> 0.7 | O119: =SUM(H119-N119) -> 0 | P119: 2018-02-28
A120: 5015W | B120: AI | C120: 1 | D120: BEACH BALL BOUNTY | E120: 5 | F120: 4000 | G120: 4000 | H120: 0.75 | I120: 250 | J120: 1000 | K120: =SUM(J120*0.1) -> 100 | L120: =SUM(J120*0.3) -> 300 | M120: =SUM(J120-L120) -> 700 | N120: =SUM(G120-J120)/G120 -> 0.75 | O120: =SUM(H120-N120) -> 0 | P120: 2018-02-28
A121: 5016W | B121: AI | C121: 1 | D121: BEACH BALL BOUNTY | E121: 5 | F121: 4000 | G121: 4000 | H121: 0.75 | I121: 250 | J121: 1000 | K121: =SUM(J121*0.1) -> 100 | L121: =SUM(J121*0.3) -> 300 | M121: =SUM(J121-L121) -> 700 | N121: =SUM(G121-J121)/G121 -> 0.75 | O121: =SUM(H121-N121) -> 0 | P121: 2018-02-28
A122: 5017W | B122: AI | C122: 1 | D122: BEACH BALL BOUNTY | E122: 5 | F122: 4000 | G122: 4000 | H122: 0.75 | I122: 250 | J122: 1000 | K122: =SUM(J122*0.1) -> 100 | L122: =SUM(J122*0.3) -> 300 | M122: =SUM(J122-L122) -> 700 | N122: =SUM(G122-J122)/G122 -> 0.75 | O122: =SUM(H122-N122) -> 0 | P122: 2018-02-28
A123: 5018W | B123: AI | C123: 1 | D123: BEACH BALL BOUNTY | E123: 5 | F123: 4000 | G123: 4000 | H123: 0.75 | I123: 500 | J123: 1000 | K123: =SUM(J123*0.1) -> 100 | L123: =SUM(J123*0.3) -> 300 | M123: =SUM(J123-L123) -> 700 | N123: =SUM(G123-J123)/G123 -> 0.75 | O123: =SUM(H123-N123) -> 0 | P123: 2018-02-28
A124: 5019W | B124: AI | C124: 1 | D124: BEACH BALL BOUNTY | E124: 5 | F124: 3120 | G124: 3120 | H124: 0.75 | I124: 100 | J124: 780 | K124: =SUM(J124*0.1) -> 78 | L124: =SUM(J124*0.3) -> 234 | M124: =SUM(J124-L124) -> 546 | N124: =SUM(G124-J124)/G124 -> 0.75 | O124: =SUM(H124-N124) -> 0 | P124: 2018-02-28
A125: 5022W | B125: AI | C125: 1 | D125: BEACH BALL BOUNTY | E125: 5 | F125: 4000 | G125: 4000 | H125: 0.75 | I125: 599 | J125: 998 | K125: =SUM(J125*0.1) -> 99.8 | L125: =SUM(J125*0.3) -> 299.4 | M125: =SUM(J125-L125) -> 698.6 | N125: =SUM(G125-J125)/G125 -> 0.7505 | O125: =SUM(H125-N125) -> -0.0005 | P125: 2018-02-28
A126: 5023W | B126: AI | C126: 1 | D126: BEACH BALL BOUNTY | E126: 5 | F126: 4000 | G126: 4000 | H126: 0.75 | I126: 500 | J126: 1000 | K126: =SUM(J126*0.1) -> 100 | L126: =SUM(J126*0.3) -> 300 | M126: =SUM(J126-L126) -> 700 | N126: =SUM(G126-J126)/G126 -> 0.75 | O126: =SUM(H126-N126) -> 0 | P126: 2018-02-28
A127: 6492G | B127: AI | C127: 0.25 | D127: BEACH BINGO | E127: 5 | F127: 4000 | G127: 1000 | H127: 0.65 | I127: 150 | J127: 350 | K127: =J127*0.1 -> 35 | L127: =J127*0.3 -> 105 | M127: =J127-L127 -> 245 | N127: =(G127-J127)/G127 -> 0.65 | O127: =H127-N127 -> 0 | P127: 2018-02-28
A128: 6493G | B128: AI | C128: 0.5 | D128: BEACH BINGO | E128: 5 | F128: 4000 | G128: 2000 | H128: 0.7 | I128: 250 | J128: 600 | K128: =J128*0.1 -> 60 | L128: =J128*0.3 -> 180 | M128: =J128-L128 -> 420 | N128: =(G128-J128)/G128 -> 0.7 | O128: =H128-N128 -> 0 | P128: 2018-02-28
A129: 6494G | B129: AI | C129: 0.5 | D129: BEACH BINGO | E129: 5 | F129: 3080 | G129: 1540 | H129: 0.75 | I129: 100 | J129: 386 | K129: =J129*0.1 -> 38.6 | L129: =J129*0.3 -> 115.8 | M129: =J129-L129 -> 270.2 | N129: =(G129-J129)/G129 -> 0.7493506494 | O129: =H129-N129 -> 0.0006493506494 | P129: 2018-02-28
A130: 6495G | B130: AI | C130: 0.5 | D130: BEACH BINGO | E130: 5 | F130: 6000 | G130: 3000 | H130: 0.75 | I130: 500 | J130: 750 | K130: =J130*0.1 -> 75 | L130: =J130*0.3 -> 225 | M130: =J130-L130 -> 525 | N130: =(G130-J130)/G130 -> 0.75 | O130: =H130-N130 -> 0 | P130: 2016-12-28
A131: 6496G | B131: AI | C131: 1 | D131: BEACH BINGO | E131: 5 | F131: 4000 | G131: 4000 | H131: 0.75 | I131: 250 | J131: 1000 | K131: =J131*0.1 -> 100 | L131: =J131*0.3 -> 300 | M131: =J131-L131 -> 700 | N131: =(G131-J131)/G131 -> 0.75 | O131: =H131-N131 -> 0 | P131: 2016-12-28
A132: 6497G | B132: AI | C132: 1 | D132: BEACH BINGO | E132: 5 | F132: 4000 | G132: 4000 | H132: 0.75 | I132: 500 | J132: 1000 | K132: =J132*0.1 -> 100 | L132: =J132*0.3 -> 300 | M132: =J132-L132 -> 700 | N132: =(G132-J132)/G132 -> 0.75 | O132: =H132-N132 -> 0 | P132: 2016-12-28
A133: 6499G | B133: AI | C133: 1 | D133: BEACH BINGO | E133: 5 | F133: 4000 | G133: 4000 | H133: 0.75 | I133: 500 | J133: 1000 | K133: =J133*0.1 -> 100 | L133: =J133*0.3 -> 300 | M133: =J133-L133 -> 700 | N133: =(G133-J133)/G133 -> 0.75 | O133: =H133-N133 -> 0 | P133: 2016-12-28
A134: 6501G | B134: AI | C134: 1 | D134: BEACH BINGO | E134: 5 | F134: 4000 | G134: 4000 | H134: 0.75 | I134: 599 | J134: 998 | K134: =J134*0.1 -> 99.8 | L134: =J134*0.3 -> 299.4 | M134: =J134-L134 -> 698.6 | N134: =(G134-J134)/G134 -> 0.7505 | O134: =H134-N134 -> -0.0005 | P134: 2016-12-28
A135: 6502G | B135: AI | C135: 1 | D135: BEACH BINGO | E135: 5 | F135: 4000 | G135: 4000 | H135: 0.75 | I135: 250 | J135: 1000 | K135: =J135*0.1 -> 100 | L135: =J135*0.3 -> 300 | M135: =J135-L135 -> 700 | N135: =(G135-J135)/G135 -> 0.75 | O135: =H135-N135 -> 0 | P135: 2016-12-28
A136: 6503G | B136: AI | C136: 1 | D136: BEACH BINGO | E136: 5 | F136: 4000 | G136: 4000 | H136: 0.75 | I136: 250 | J136: 1000 | K136: =J136*0.1 -> 100 | L136: =J136*0.3 -> 300 | M136: =J136-L136 -> 700 | N136: =(G136-J136)/G136 -> 0.75 | O136: =H136-N136 -> 0 | P136: 2016-12-28
A137: 6505G | B137: AI | C137: 1 | D137: BEACH BINGO | E137: 5 | F137: 3120 | G137: 3120 | H137: 0.75 | I137: 100 | J137: 780 | K137: =J137*0.1 -> 78 | L137: =J137*0.3 -> 234 | M137: =J137-L137 -> 546 | N137: =(G137-J137)/G137 -> 0.75 | O137: =H137-N137 -> 0 | P137: 2016-12-28
A138: 6507G | B138: AI | C138: 1 | D138: BEACH BINGO | E138: 5 | F138: 4000 | G138: 4000 | H138: 0.75 | I138: 200 | J138: 1000 | K138: =J138*0.1 -> 100 | L138: =J138*0.3 -> 300 | M138: =J138-L138 -> 700 | N138: =(G138-J138)/G138 -> 0.75 | O138: =H138-N138 -> 0 | P138: 2016-12-28
A139: 6508G | B139: AI | C139: 1 | D139: BEACH BINGO | E139: 5 | F139: 4000 | G139: 4000 | H139: 0.76 | I139: 500 | J139: 975 | K139: =J139*0.1 -> 97.5 | L139: =J139*0.3 -> 292.5 | M139: =J139-L139 -> 682.5 | N139: =(G139-J139)/G139 -> 0.75625 | O139: =H139-N139 -> 0.00375 | P139: 2016-12-28
A140: 5604U | B140: AI | C140: 1 | D140: BEAT THE BANK | E140: 5 | F140: 4000 | G140: 4000 | H140: 0.75 | I140: 500 | J140: 1000 | K140: =SUM(J140*0.1) -> 100 | L140: =SUM(J140*0.3) -> 300 | M140: =SUM(J140-L140) -> 700 | N140: =SUM(G140-J140)/G140 -> 0.75 | O140: =SUM(H140-N140) -> 0 | P140: 2015-01-21
A141: 58921 | B141: AI | C141: 0.25 | D141: BELL RINGER | E141: 5 | F141: 2400 | G141: 600 | H141: 0.65 | I141: 50 | J141: 210 | K141: =J141*0.1 -> 21 | L141: =J141*0.3 -> 63 | M141: =J141-L141 -> 147 | N141: =(G141-J141)/G141 -> 0.65 | O141: =H141-N141 -> 0 | P141: 2015-01-21
A142: 58929 | B142: AI | C142: 1 | D142: BELL RINGER | E142: 5 | F142: 4000 | G142: 4000 | H142: 0.75 | I142: 500 | J142: 1000 | K142: =J142*0.1 -> 100 | L142: =J142*0.3 -> 300 | M142: =J142-L142 -> 700 | N142: =(G142-J142)/G142 -> 0.75 | O142: =H142-N142 -> 0 | P142: 2016-02-10
A143: 5133V | B143: AI | C143: 0.25 | D143: BET YOUR ACES | E143: 5 | F143: 4000 | G143: 1000 | H143: 0.65 | I143: 150 | J143: 350 | K143: =SUM(J143*0.1) -> 35 | L143: =SUM(J143*0.3) -> 105 | M143: =SUM(J143-L143) -> 245 | N143: =SUM(G143-J143)/G143 -> 0.65 | O143: =SUM(H143-N143) -> 0 | P143: 2017-01-18
A144: 5134V | B144: AI | C144: 0.5 | D144: BET YOUR ACES | E144: 5 | F144: 4000 | G144: 2000 | H144: 0.7 | I144: 250 | J144: 600 | K144: =SUM(J144*0.1) -> 60 | L144: =SUM(J144*0.3) -> 180 | M144: =SUM(J144-L144) -> 420 | N144: =SUM(G144-J144)/G144 -> 0.7 | O144: =SUM(H144-N144) -> 0 | P144: 2017-01-18
A145: 5135V | B145: AI | C145: 0.5 | D145: BET YOUR ACES | E145: 5 | F145: 3080 | G145: 1540 | H145: 0.75 | I145: 100 | J145: 386 | K145: =SUM(J145*0.1) -> 38.6 | L145: =SUM(J145*0.3) -> 115.8 | M145: =SUM(J145-L145) -> 270.2 | N145: =SUM(G145-J145)/G145 -> 0.7493506494 | O145: =SUM(H145-N145) -> 0.0006493506494 | P145: 2017-01-18
A146: 5136V | B146: AI | C146: 0.5 | D146: BET YOUR ACES | E146: 5 | F146: 6000 | G146: 3000 | H146: 0.75 | I146: 500 | J146: 750 | K146: =SUM(J146*0.1) -> 75 | L146: =SUM(J146*0.3) -> 225 | M146: =SUM(J146-L146) -> 525 | N146: =SUM(G146-J146)/G146 -> 0.75 | O146: =SUM(H146-N146) -> 0 | P146: 2017-01-18
A147: 5137V | B147: AI | C147: 1 | D147: BET YOUR ACES | E147: 5 | F147: 4000 | G147: 4000 | H147: 0.75 | I147: 250 | J147: 1000 | K147: =SUM(J147*0.1) -> 100 | L147: =SUM(J147*0.3) -> 300 | M147: =SUM(J147-L147) -> 700 | N147: =SUM(G147-J147)/G147 -> 0.75 | O147: =SUM(H147-N147) -> 0 | P147: 2017-11-22
A148: 5138V | B148: AI | C148: 1 | D148: BET YOUR ACES | E148: 5 | F148: 4000 | G148: 4000 | H148: 0.75 | I148: 500 | J148: 1000 | K148: =SUM(J148*0.1) -> 100 | L148: =SUM(J148*0.3) -> 300 | M148: =SUM(J148-L148) -> 700 | N148: =SUM(G148-J148)/G148 -> 0.75 | O148: =SUM(H148-N148) -> 0 | P148: 2017-11-22
A149: 5139V | B149: AI | C149: 1 | D149: BET YOUR ACES | E149: 5 | F149: 4000 | G149: 4000 | H149: 0.75 | I149: 500 | J149: 1000 | K149: =SUM(J149*0.1) -> 100 | L149: =SUM(J149*0.3) -> 300 | M149: =SUM(J149-L149) -> 700 | N149: =SUM(G149-J149)/G149 -> 0.75 | O149: =SUM(H149-N149) -> 0 | P149: 2017-11-22
A150: 5142V | B150: AI | C150: 1 | D150: BET YOUR ACES | E150: 5 | F150: 4000 | G150: 4000 | H150: 0.75 | I150: 599 | J150: 998 | K150: =SUM(J150*0.1) -> 99.8 | L150: =SUM(J150*0.3) -> 299.4 | M150: =SUM(J150-L150) -> 698.6 | N150: =SUM(G150-J150)/G150 -> 0.7505 | O150: =SUM(H150-N150) -> -0.0005 | P150: 2017-11-22
A151: 5143V | B151: AI | C151: 1 | D151: BET YOUR ACES | E151: 5 | F151: 4000 | G151: 4000 | H151: 0.75 | I151: 250 | J151: 1000 | K151: =SUM(J151*0.1) -> 100 | L151: =SUM(J151*0.3) -> 300 | M151: =SUM(J151-L151) -> 700 | N151: =SUM(G151-J151)/G151 -> 0.75 | O151: =SUM(H151-N151) -> 0 | P151: 2017-11-22
A152: 5144V | B152: AI | C152: 1 | D152: BET YOUR ACES | E152: 5 | F152: 4000 | G152: 4000 | H152: 0.75 | I152: 250 | J152: 1000 | K152: =SUM(J152*0.1) -> 100 | L152: =SUM(J152*0.3) -> 300 | M152: =SUM(J152-L152) -> 700 | N152: =SUM(G152-J152)/G152 -> 0.75 | O152: =SUM(H152-N152) -> 0 | P152: 2017-11-22
A153: 5145V | B153: AI | C153: 1 | D153: BET YOUR ACES | E153: 5 | F153: 3120 | G153: 3120 | H153: 0.75 | I153: 100 | J153: 780 | K153: =SUM(J153*0.1) -> 78 | L153: =SUM(J153*0.3) -> 234 | M153: =SUM(J153-L153) -> 546 | N153: =SUM(G153-J153)/G153 -> 0.75 | O153: =SUM(H153-N153) -> 0 | P153: 2017-11-22
A154: 5148V | B154: AI | C154: 1 | D154: BET YOUR ACES | E154: 5 | F154: 4000 | G154: 4000 | H154: 0.75 | I154: 500 | J154: 1000 | K154: =SUM(J154*0.1) -> 100 | L154: =SUM(J154*0.3) -> 300 | M154: =SUM(J154-L154) -> 700 | N154: =SUM(G154-J154)/G154 -> 0.75 | O154: =SUM(H154-N154) -> 0 | P154: 2017-11-22
A155: 5149V | B155: AI | C155: 1 | D155: BET YOUR ACES | E155: 5 | F155: 4000 | G155: 4000 | H155: 0.75 | I155: 200 | J155: 1000 | K155: =SUM(J155*0.1) -> 100 | L155: =SUM(J155*0.3) -> 300 | M155: =SUM(J155-L155) -> 700 | N155: =SUM(G155-J155)/G155 -> 0.75 | O155: =SUM(H155-N155) -> 0 | P155: 2017-11-22
A156: 5150V | B156: AI | C156: 1 | D156: BET YOUR ACES | E156: 5 | F156: 4000 | G156: 4000 | H156: 0.75 | I156: 249 | J156: 996 | K156: =SUM(J156*0.1) -> 99.6 | L156: =SUM(J156*0.3) -> 298.8 | M156: =SUM(J156-L156) -> 697.2 | N156: =SUM(G156-J156)/G156 -> 0.751 | O156: =SUM(H156-N156) -> -0.001 | P156: 2017-11-22
A157: 6157F | B157: AI | C157: 0.25 | D157: BET YOUR BRITCHES | E157: 5 | F157: 4000 | G157: 1000 | H157: 0.65 | I157: 150 | J157: 350 | K157: =J157*0.1 -> 35 | L157: =J157*0.3 -> 105 | M157: =J157-L157 -> 245 | N157: =(G157-J157)/G157 -> 0.65 | O157: =H157-N157 -> 0 | P157: 2017-11-22
A158: 6321F | B158: AI | C158: 0.25 | D158: BET YOUR BRITCHES | E158: 5 | F158: 2400 | G158: 600 | H158: 0.71 | I158: 75 | J158: 175 | K158: =J158*0.1 -> 17.5 | L158: =J158*0.3 -> 52.5 | M158: =J158-L158 -> 122.5 | N158: =(G158-J158)/G158 -> 0.7083333333 | O158: =H158-N158 -> 0.001666666667 | P158: 2017-11-22
A159: 6158F | B159: AI | C159: 0.5 | D159: BET YOUR BRITCHES | E159: 5 | F159: 4000 | G159: 2000 | H159: 0.7 | I159: 250 | J159: 600 | K159: =J159*0.1 -> 60 | L159: =J159*0.3 -> 180 | M159: =J159-L159 -> 420 | N159: =(G159-J159)/G159 -> 0.7 | O159: =H159-N159 -> 0 | P159: 2018-04-04
A160: 6159F | B160: AI | C160: 0.5 | D160: BET YOUR BRITCHES | E160: 5 | F160: 3080 | G160: 1540 | H160: 0.75 | I160: 100 | J160: 386 | K160: =J160*0.1 -> 38.6 | L160: =J160*0.3 -> 115.8 | M160: =J160-L160 -> 270.2 | N160: =(G160-J160)/G160 -> 0.7493506494 | O160: =H160-N160 -> 0.0006493506494 | P160: 2018-04-04
A161: 6160F | B161: AI | C161: 0.5 | D161: BET YOUR BRITCHES | E161: 5 | F161: 2400 | G161: 1200 | H161: 0.66 | I161: 100 | J161: 410 | K161: =J161*0.1 -> 41 | L161: =J161*0.3 -> 123 | M161: =J161-L161 -> 287 | N161: =(G161-J161)/G161 -> 0.6583333333 | O161: =H161-N161 -> 0.001666666667 | P161: 2018-04-04
A162: 6161F | B162: AI | C162: 1 | D162: BET YOUR BRITCHES | E162: 5 | F162: 4000 | G162: 4000 | H162: 0.75 | I162: 250 | J162: 1000 | K162: =J162*0.1 -> 100 | L162: =J162*0.3 -> 300 | M162: =J162-L162 -> 700 | N162: =(G162-J162)/G162 -> 0.75 | O162: =H162-N162 -> 0 | P162: 2018-04-04
A163: 6162F | B163: AI | C163: 1 | D163: BET YOUR BRITCHES | E163: 5 | F163: 4000 | G163: 4000 | H163: 0.75 | I163: 500 | J163: 1000 | K163: =J163*0.1 -> 100 | L163: =J163*0.3 -> 300 | M163: =J163-L163 -> 700 | N163: =(G163-J163)/G163 -> 0.75 | O163: =H163-N163 -> 0 | P163: 2018-04-04
A164: 6164F | B164: AI | C164: 1 | D164: BET YOUR BRITCHES | E164: 5 | F164: 4000 | G164: 4000 | H164: 0.75 | I164: 500 | J164: 1000 | K164: =J164*0.1 -> 100 | L164: =J164*0.3 -> 300 | M164: =J164-L164 -> 700 | N164: =(G164-J164)/G164 -> 0.75 | O164: =H164-N164 -> 0 | P164: 2018-04-04
A165: 6166F | B165: AI | C165: 1 | D165: BET YOUR BRITCHES | E165: 5 | F165: 4000 | G165: 4000 | H165: 0.75 | I165: 599 | J165: 998 | K165: =J165*0.1 -> 99.8 | L165: =J165*0.3 -> 299.4 | M165: =J165-L165 -> 698.6 | N165: =(G165-J165)/G165 -> 0.7505 | O165: =H165-N165 -> -0.0005 | P165: 2018-04-04
A166: 6167F | B166: AI | C166: 1 | D166: BET YOUR BRITCHES | E166: 5 | F166: 4000 | G166: 4000 | H166: 0.75 | I166: 250 | J166: 1000 | K166: =J166*0.1 -> 100 | L166: =J166*0.3 -> 300 | M166: =J166-L166 -> 700 | N166: =(G166-J166)/G166 -> 0.75 | O166: =H166-N166 -> 0 | P166: 2018-04-04
A167: 6168F | B167: AI | C167: 1 | D167: BET YOUR BRITCHES | E167: 5 | F167: 4000 | G167: 4000 | H167: 0.75 | I167: 250 | J167: 1000 | K167: =J167*0.1 -> 100 | L167: =J167*0.3 -> 300 | M167: =J167-L167 -> 700 | N167: =(G167-J167)/G167 -> 0.75 | O167: =H167-N167 -> 0 | P167: 2018-04-04
A168: 6169F | B168: AI | C168: 1 | D168: BET YOUR BRITCHES | E168: 5 | F168: 3120 | G168: 3120 | H168: 0.75 | I168: 100 | J168: 780 | K168: =J168*0.1 -> 78 | L168: =J168*0.3 -> 234 | M168: =J168-L168 -> 546 | N168: =(G168-J168)/G168 -> 0.75 | O168: =H168-N168 -> 0 | P168: 2018-04-04
A169: 6865H | B169: AI | C169: 0.25 | D169: BET YOUR BUCKS | E169: 5 | F169: 4000 | G169: 1000 | H169: 0.65 | I169: 150 | J169: 350 | K169: =J169*0.1 -> 35 | L169: =J169*0.3 -> 105 | M169: =J169-L169 -> 245 | N169: =(G169-J169)/G169 -> 0.65 | O169: =H169-N169 -> 0 | P169: 2018-04-04
A170: 6866H | B170: AI | C170: 0.5 | D170: BET YOUR BUCKS | E170: 5 | F170: 4000 | G170: 2000 | H170: 0.7 | I170: 250 | J170: 600 | K170: =J170*0.1 -> 60 | L170: =J170*0.3 -> 180 | M170: =J170-L170 -> 420 | N170: =(G170-J170)/G170 -> 0.7 | O170: =H170-N170 -> 0 | P170: 2017-03-08
A171: 6867H | B171: AI | C171: 0.5 | D171: BET YOUR BUCKS | E171: 5 | F171: 3080 | G171: 1540 | H171: 0.75 | I171: 100 | J171: 386 | K171: =J171*0.1 -> 38.6 | L171: =J171*0.3 -> 115.8 | M171: =J171-L171 -> 270.2 | N171: =(G171-J171)/G171 -> 0.7493506494 | O171: =H171-N171 -> 0.0006493506494 | P171: 2017-03-08
A172: 6869H | B172: AI | C172: 1 | D172: BET YOUR BUCKS | E172: 5 | F172: 4000 | G172: 4000 | H172: 0.75 | I172: 500 | J172: 1000 | K172: =J172*0.1 -> 100 | L172: =J172*0.3 -> 300 | M172: =J172-L172 -> 700 | N172: =(G172-J172)/G172 -> 0.75 | O172: =H172-N172 -> 0 | P172: 2017-03-08
A173: 6870H | B173: AI | C173: 1 | D173: BET YOUR BUCKS | E173: 5 | F173: 4000 | G173: 4000 | H173: 0.75 | I173: 250 | J173: 1000 | K173: =J173*0.1 -> 100 | L173: =J173*0.3 -> 300 | M173: =J173-L173 -> 700 | N173: =(G173-J173)/G173 -> 0.75 | O173: =H173-N173 -> 0 | P173: 2017-03-08
A174: 6871H | B174: AI | C174: 1 | D174: BET YOUR BUCKS | E174: 5 | F174: 4000 | G174: 4000 | H174: 0.75 | I174: 500 | J174: 1000 | K174: =J174*0.1 -> 100 | L174: =J174*0.3 -> 300 | M174: =J174-L174 -> 700 | N174: =(G174-J174)/G174 -> 0.75 | O174: =H174-N174 -> 0 | P174: 2017-03-08
A175: 6874H | B175: AI | C175: 1 | D175: BET YOUR BUCKS | E175: 5 | F175: 4000 | G175: 4000 | H175: 0.75 | I175: 599 | J175: 998 | K175: =J175*0.1 -> 99.8 | L175: =J175*0.3 -> 299.4 | M175: =J175-L175 -> 698.6 | N175: =(G175-J175)/G175 -> 0.7505 | O175: =H175-N175 -> -0.0005 | P175: 2017-03-08
A176: 6875H | B176: AI | C176: 1 | D176: BET YOUR BUCKS | E176: 5 | F176: 4000 | G176: 4000 | H176: 0.75 | I176: 250 | J176: 1000 | K176: =J176*0.1 -> 100 | L176: =J176*0.3 -> 300 | M176: =J176-L176 -> 700 | N176: =(G176-J176)/G176 -> 0.75 | O176: =H176-N176 -> 0 | P176: 2017-03-08
A177: 6876H | B177: AI | C177: 1 | D177: BET YOUR BUCKS | E177: 5 | F177: 4000 | G177: 4000 | H177: 0.75 | I177: 250 | J177: 1000 | K177: =J177*0.1 -> 100 | L177: =J177*0.3 -> 300 | M177: =J177-L177 -> 700 | N177: =(G177-J177)/G177 -> 0.75 | O177: =H177-N177 -> 0 | P177: 2017-03-08
A178: 6877H | B178: AI | C178: 1 | D178: BET YOUR BUCKS | E178: 5 | F178: 3120 | G178: 3120 | H178: 0.75 | I178: 100 | J178: 780 | K178: =J178*0.1 -> 78 | L178: =J178*0.3 -> 234 | M178: =J178-L178 -> 546 | N178: =(G178-J178)/G178 -> 0.75 | O178: =H178-N178 -> 0 | P178: 2017-03-08
A179: 6880H | B179: AI | C179: 1 | D179: BET YOUR BUCKS | E179: 5 | F179: 4000 | G179: 4000 | H179: 0.76 | I179: 500 | J179: 975 | K179: =J179*0.1 -> 97.5 | L179: =J179*0.3 -> 292.5 | M179: =J179-L179 -> 682.5 | N179: =(G179-J179)/G179 -> 0.75625 | O179: =H179-N179 -> 0.00375 | P179: 2017-03-08
A180: 5532W | B180: AI | C180: 0.25 | D180: BETTIN' BIG | E180: 5 | F180: 4000 | G180: 1000 | H180: 0.65 | I180: 150 | J180: 350 | K180: =SUM(J180*0.1) -> 35 | L180: =SUM(J180*0.3) -> 105 | M180: =SUM(J180-L180) -> 245 | N180: =SUM(G180-J180)/G180 -> 0.65 | O180: =SUM(H180-N180) -> 0 | P180: 2017-03-08
A181: 5533W | B181: AI | C181: 0.5 | D181: BETTIN' BIG | E181: 5 | F181: 4000 | G181: 2000 | H181: 0.7 | I181: 250 | J181: 600 | K181: =SUM(J181*0.1) -> 60 | L181: =SUM(J181*0.3) -> 180 | M181: =SUM(J181-L181) -> 420 | N181: =SUM(G181-J181)/G181 -> 0.7 | O181: =SUM(H181-N181) -> 0 | P181: 2017-03-08
A182: 5537W | B182: AI | C182: 1 | D182: BETTIN' BIG | E182: 5 | F182: 4000 | G182: 4000 | H182: 0.75 | I182: 250 | J182: 1000 | K182: =SUM(J182*0.1) -> 100 | L182: =SUM(J182*0.3) -> 300 | M182: =SUM(J182-L182) -> 700 | N182: =SUM(G182-J182)/G182 -> 0.75 | O182: =SUM(H182-N182) -> 0 | P182: 2015-12-02
A183: 5538W | B183: AI | C183: 1 | D183: BETTIN' BIG | E183: 5 | F183: 4000 | G183: 4000 | H183: 0.75 | I183: 500 | J183: 1000 | K183: =SUM(J183*0.1) -> 100 | L183: =SUM(J183*0.3) -> 300 | M183: =SUM(J183-L183) -> 700 | N183: =SUM(G183-J183)/G183 -> 0.75 | O183: =SUM(H183-N183) -> 0 | P183: 2015-12-02
A184: 5540W | B184: AI | C184: 1 | D184: BETTIN' BIG | E184: 5 | F184: 4000 | G184: 4000 | H184: 0.75 | I184: 500 | J184: 1000 | K184: =SUM(J184*0.1) -> 100 | L184: =SUM(J184*0.3) -> 300 | M184: =SUM(J184-L184) -> 700 | N184: =SUM(G184-J184)/G184 -> 0.75 | O184: =SUM(H184-N184) -> 0 | P184: 2015-12-02
A185: 5542W | B185: AI | C185: 1 | D185: BETTIN' BIG | E185: 5 | F185: 4000 | G185: 4000 | H185: 0.75 | I185: 599 | J185: 998 | K185: =SUM(J185*0.1) -> 99.8 | L185: =SUM(J185*0.3) -> 299.4 | M185: =SUM(J185-L185) -> 698.6 | N185: =SUM(G185-J185)/G185 -> 0.7505 | O185: =SUM(H185-N185) -> -0.0005 | P185: 2015-12-02
A186: 5543W | B186: AI | C186: 1 | D186: BETTIN' BIG | E186: 5 | F186: 4000 | G186: 4000 | H186: 0.75 | I186: 250 | J186: 1000 | K186: =SUM(J186*0.1) -> 100 | L186: =SUM(J186*0.3) -> 300 | M186: =SUM(J186-L186) -> 700 | N186: =SUM(G186-J186)/G186 -> 0.75 | O186: =SUM(H186-N186) -> 0 | P186: 2015-10-28
A187: 5544W | B187: AI | C187: 1 | D187: BETTIN' BIG | E187: 5 | F187: 4000 | G187: 4000 | H187: 0.75 | I187: 250 | J187: 1000 | K187: =SUM(J187*0.1) -> 100 | L187: =SUM(J187*0.3) -> 300 | M187: =SUM(J187-L187) -> 700 | N187: =SUM(G187-J187)/G187 -> 0.75 | O187: =SUM(H187-N187) -> 0 | P187: 2015-10-28
A188: 5545W | B188: AI | C188: 1 | D188: BETTIN' BIG | E188: 5 | F188: 3120 | G188: 3120 | H188: 0.75 | I188: 100 | J188: 780 | K188: =SUM(J188*0.1) -> 78 | L188: =SUM(J188*0.3) -> 234 | M188: =SUM(J188-L188) -> 546 | N188: =SUM(G188-J188)/G188 -> 0.75 | O188: =SUM(H188-N188) -> 0 | P188: 2015-10-28
A189: 6242Q | B189: AI | C189: 0.25 | D189: BIG BONUS | E189: 5 | F189: 2400 | G189: 600 | H189: 0.65 | I189: 50 | J189: 210 | K189: =J189*0.1 -> 21 | L189: =J189*0.3 -> 63 | M189: =J189-L189 -> 147 | N189: =(G189-J189)/G189 -> 0.65 | O189: =H189-N189 -> 0 | P189: 2018-10-17
A190: 6445P | B190: AI | C190: 0.25 | D190: BIG BONUS | E190: 5 | F190: 4000 | G190: 1000 | H190: 0.65 | I190: 150 | J190: 350 | K190: =J190*0.1 -> 35 | L190: =J190*0.3 -> 105 | M190: =J190-L190 -> 245 | N190: =(G190-J190)/G190 -> 0.65 | O190: =H190-N190 -> 0 | P190: 2018-10-17
A191: 6446P | B191: AI | C191: 0.5 | D191: BIG BONUS | E191: 5 | F191: 4000 | G191: 2000 | H191: 0.7 | I191: 250 | J191: 600 | K191: =J191*0.1 -> 60 | L191: =J191*0.3 -> 180 | M191: =J191-L191 -> 420 | N191: =(G191-J191)/G191 -> 0.7 | O191: =H191-N191 -> 0 | P191: 2018-10-17
A192: 6447P | B192: AI | C192: 0.5 | D192: BIG BONUS | E192: 5 | F192: 3080 | G192: 1540 | H192: 0.75 | I192: 100 | J192: 386 | K192: =J192*0.1 -> 38.6 | L192: =J192*0.3 -> 115.8 | M192: =J192-L192 -> 270.2 | N192: =(G192-J192)/G192 -> 0.7493506494 | O192: =H192-N192 -> 0.0006493506494 | P192: 2018-10-17
A193: 6448P | B193: AI | C193: 1 | D193: BIG BONUS | E193: 5 | F193: 4000 | G193: 4000 | H193: 0.75 | I193: 500 | J193: 1000 | K193: =J193*0.1 -> 100 | L193: =J193*0.3 -> 300 | M193: =J193-L193 -> 700 | N193: =(G193-J193)/G193 -> 0.75 | O193: =H193-N193 -> 0 | P193: 2018-10-17
A194: 6449P | B194: AI | C194: 1 | D194: BIG BONUS | E194: 5 | F194: 4000 | G194: 4000 | H194: 0.75 | I194: 250 | J194: 1000 | K194: =J194*0.1 -> 100 | L194: =J194*0.3 -> 300 | M194: =J194-L194 -> 700 | N194: =(G194-J194)/G194 -> 0.75 | O194: =H194-N194 -> 0 | P194: 2018-10-17
A195: 6450P | B195: AI | C195: 1 | D195: BIG BONUS | E195: 5 | F195: 4000 | G195: 4000 | H195: 0.75 | I195: 599 | J195: 998 | K195: =J195*0.1 -> 99.8 | L195: =J195*0.3 -> 299.4 | M195: =J195-L195 -> 698.6 | N195: =(G195-J195)/G195 -> 0.7505 | O195: =H195-N195 -> -0.0005 | P195: 2018-10-17
A196: 6451P | B196: AI | C196: 1 | D196: BIG BONUS | E196: 5 | F196: 4000 | G196: 4000 | H196: 0.75 | I196: 500 | J196: 1000 | K196: =J196*0.1 -> 100 | L196: =J196*0.3 -> 300 | M196: =J196-L196 -> 700 | N196: =(G196-J196)/G196 -> 0.75 | O196: =H196-N196 -> 0 | P196: 2018-10-17
A197: 6453P | B197: AI | C197: 1 | D197: BIG BONUS | E197: 5 | F197: 4000 | G197: 4000 | H197: 0.75 | I197: 250 | J197: 1000 | K197: =J197*0.1 -> 100 | L197: =J197*0.3 -> 300 | M197: =J197-L197 -> 700 | N197: =(G197-J197)/G197 -> 0.75 | O197: =H197-N197 -> 0 | P197: 2018-10-17
A198: 6455P | B198: AI | C198: 1 | D198: BIG BONUS | E198: 5 | F198: 4000 | G198: 4000 | H198: 0.75 | I198: 250 | J198: 1000 | K198: =J198*0.1 -> 100 | L198: =J198*0.3 -> 300 | M198: =J198-L198 -> 700 | N198: =(G198-J198)/G198 -> 0.75 | O198: =H198-N198 -> 0 | P198: 2018-10-17
A199: 6456P | B199: AI | C199: 1 | D199: BIG BONUS | E199: 5 | F199: 3120 | G199: 3120 | H199: 0.75 | I199: 100 | J199: 780 | K199: =J199*0.1 -> 78 | L199: =J199*0.3 -> 234 | M199: =J199-L199 -> 546 | N199: =(G199-J199)/G199 -> 0.75 | O199: =H199-N199 -> 0 | P199: 2018-10-17
A200: 6396K | B200: AI | C200: 0.25 | D200: BIG CITY SEVENS | E200: 5 | F200: 4000 | G200: 1000 | H200: 0.65 | I200: 150 | J200: 350 | K200: =J200*0.1 -> 35 | L200: =J200*0.3 -> 105 | M200: =J200-L200 -> 245 | N200: =(G200-J200)/G200 -> 0.65 | O200: =H200-N200 -> 0 | P200: 2018-07-18
A201: 6397K | B201: AI | C201: 0.5 | D201: BIG CITY SEVENS | E201: 5 | F201: 4000 | G201: 2000 | H201: 0.7 | I201: 250 | J201: 600 | K201: =J201*0.1 -> 60 | L201: =J201*0.3 -> 180 | M201: =J201-L201 -> 420 | N201: =(G201-J201)/G201 -> 0.7 | O201: =H201-N201 -> 0 | P201: 2018-07-18
A202: 6402K | B202: AI | C202: 0.5 | D202: BIG CITY SEVENS | E202: 5 | F202: 3080 | G202: 1540 | H202: 0.75 | I202: 100 | J202: 386 | K202: =J202*0.1 -> 38.6 | L202: =J202*0.3 -> 115.8 | M202: =J202-L202 -> 270.2 | N202: =(G202-J202)/G202 -> 0.7493506494 | O202: =H202-N202 -> 0.0006493506494 | P202: 2018-07-18
A203: 6398K | B203: AI | C203: 1 | D203: BIG CITY SEVENS | E203: 5 | F203: 4000 | G203: 4000 | H203: 0.75 | I203: 500 | J203: 1000 | K203: =J203*0.1 -> 100 | L203: =J203*0.3 -> 300 | M203: =J203-L203 -> 700 | N203: =(G203-J203)/G203 -> 0.75 | O203: =H203-N203 -> 0 | P203: 2018-07-18
... 3368 more rows
